bitfinex/quotes_BTCUSD_20250114
["timestamp","ask_amount","ask_price","bid_price","bid_amount"]
[1736852383182,0.09213379,96730.0,96729.0,0.001]
[1736852383503,0.09413379,96730.0,96729.0,0.001]
[1736852384287,0.04689382,96739.0,96729.0,0.001]
[1736852384288,0.00179382,96739.0,96738.0,0.40588842]
[1736852384495,0.13884027,96745.0,96742.0,0.32968842]
[1736852384711,0.02289503,96745.0,96744.0,0.32968842]
[1736852384904,0.0928601,96757.0,96756.0,0.382905]
[1736852385108,0.0928601,96757.0,96756.0,0.49414132]
[1736852385727,0.00049945,96757.0,96756.0,0.49414132]
[1736852386272,0.00149945,96757.0,96756.0,0.49714132]
[1736852386449,0.00049945,96757.0,96756.0,0.49414132]
[1736852386799,0.00149945,96757.0,96756.0,0.52234163]
[1736852387176,0.00249945,96757.0,96756.0,0.52434163]
[1736852387970,0.00429307,96757.0,96756.0,0.52434163]
[1736852390295,0.00429307,96757.0,96756.0,0.50883039]
[1736852390490,0.00429307,96757.0,96756.0,0.51942693]
[1736852391329,0.00329307,96757.0,96756.0,0.51742693]
[1736852391674,0.00429307,96757.0,96756.0,0.74911535]
[1736852391874,0.00429307,96757.0,96756.0,1.75656335]
[1736852392083,0.00429307,96757.0,96756.0,1.39989435]
[1736852392283,0.00229307,96757.0,96756.0,1.33089135]
[1736852392484,0.00429307,96757.0,96756.0,1.34189135]
[1736852392722,0.00429307,96757.0,96756.0,1.10269335]
[1736852392938,0.00229307,96757.0,96756.0,2.59169335]
[1736852393117,0.00329307,96757.0,96756.0,2.30091535]
[1736852393311,0.00329307,96757.0,96756.0,2.53011159]
[1736852394438,0.00429307,96757.0,96756.0,2.53611159]
[1736852397468,0.00429307,96757.0,96756.0,3.39291159]
[1736852400125,0.00179299,96784.0,96756.0,3.39291159]
[1736852400126,0.00179299,96784.0,96782.0,0.206649]
[1736852400307,0.00184293,96783.0,96782.0,0.31190895]
[1736852400518,0.00184293,96783.0,96782.0,0.31087592]
[1736852400722,0.00184293,96783.0,96782.0,0.53167592]
[1736852400895,0.00184293,96783.0,96782.0,1.98627592]
[1736852401097,0.00184293,96783.0,96782.0,1.91087592]
[1736852401272,0.00184293,96783.0,96782.0,1.91587592]
[1736852401503,0.00184293,96783.0,96782.0,1.711649]
[1736852401768,0.00184293,96783.0,96782.0,0.22213329]
[1736852402023,0.00184293,96783.0,96782.0,0.22513329]
[1736852402863,0.00184293,96783.0,96782.0,0.21713329]
[1736852403069,0.00184293,96783.0,96782.0,0.22613329]
[1736852403571,0.00184293,96783.0,96782.0,0.21713329]
[1736852403968,0.00184293,96783.0,96782.0,0.21913329]
[1736852404304,0.00184293,96783.0,96782.0,0.22113329]
[1736852404489,0.00184293,96783.0,96782.0,0.004]
[1736852404703,0.04724293,96783.0,96782.0,0.002]
[1736852404900,0.12744293,96783.0,96782.0,0.002]
[1736852405131,0.14775451,96783.0,96782.0,0.003]
[1736852405613,0.17075451,96783.0,96782.0,0.002]
[1736852405789,0.42598143,96783.0,96782.0,0.002]
[1736852406842,0.42598143,96783.0,96756.0,0.0070094]
[1736852406843,0.2532,96782.0,96756.0,0.0070094]
[1736852407038,0.0802,96761.0,96756.0,0.0070094]
[1736852407242,0.00604,96760.0,96756.0,0.0070094]
[1736852407426,0.00604,96760.0,96756.0,0.2137144]
[1736852407929,0.00604,96760.0,96756.0,0.0070094]
[1736852408162,0.00604,96760.0,96756.0,0.2137144]
[1736852408360,0.00904,96760.0,96756.0,0.2137144]
[1736852408571,0.00904,96760.0,96756.0,0.2147144]
[1736852409530,0.00904,96760.0,96756.0,0.0080094]
[1736852409871,0.00904,96760.0,96756.0,0.0070094]
[1736852410315,0.00904,96760.0,96756.0,0.0080094]
[1736852411975,0.003,96760.0,96756.0,0.0088631]
[1736852412177,0.00604,96759.0,96756.0,0.0088631]
[1736852413164,0.212739,96759.0,96756.0,0.0088631]
[1736852413365,0.00604,96759.0,96756.0,0.0078631]
[1736852413695,0.00604,96759.0,96756.0,0.0098631]
[1736852413837,0.002,96759.0,96756.0,0.0098631]
[1736852414033,0.00604,96758.0,96756.0,0.0098631]
[1736852415320,0.00804,96758.0,96756.0,0.0098631]
[1736852415532,0.00804,96758.0,96756.0,0.0078631]
[1736852416487,0.00604,96758.0,96756.0,0.0078631]
[1736852416902,0.00904,96758.0,96756.0,0.0098631]
[1736852417301,0.00604,96758.0,96756.0,0.0078631]
[1736852417594,0.00604,96758.0,96756.0,0.0008537]
[1736852417768,0.01204,96758.0,96757.0,0.00686023]
[1736852418084,0.01204,96758.0,96756.0,0.0008537]
[1736852418308,0.01204,96758.0,96757.0,0.00687935]
[1736852418686,0.01204,96758.0,96756.0,0.0008537]
[1736852418984,0.01204,96758.0,96757.0,0.00687935]
[1736852419414,0.01204,96758.0,96756.0,0.0008537]
[1736852419660,0.00804,96758.0,96757.0,0.00687935]
[1736852420008,0.01004,96758.0,96756.0,0.0008537]
[1736852420228,0.01004,96758.0,96757.0,0.00687935]
[1736852420433,0.01204,96758.0,96757.0,0.00687935]
[1736852420654,0.01204,96758.0,96756.0,0.0008537]
[1736852420995,0.00804,96758.0,96757.0,0.00687935]
[1736852421178,0.01204,96758.0,96757.0,0.00687935]
[1736852421576,0.01004,96758.0,96757.0,0.00687935]
[1736852422015,0.01204,96758.0,96757.0,0.00687935]
[1736852422206,0.01204,96758.0,96756.0,0.0008537]
[1736852422408,0.01204,96758.0,96757.0,0.00687935]
[1736852422754,0.01204,96758.0,96756.0,0.0008537]
[1736852422893,0.01204,96758.0,96757.0,0.00687935]
[1736852423298,0.00804,96758.0,96756.0,0.0008537]
[1736852423550,0.01204,96758.0,96757.0,0.00687935]
[1736852423899,0.01004,96758.0,96756.0,0.0008537]
[1736852424152,0.002,96758.0,96757.0,0.00687935]
[1736852424304,0.00804,96758.0,96757.0,0.00687935]
[1736852424511,0.01204,96758.0,96757.0,0.00687935]
[1736852424734,0.01204,96758.0,96756.0,0.0008537]
[1736852424970,0.00804,96758.0,96757.0,0.00687935]
[1736852425143,0.00804,96758.0,96756.0,0.0008537]
[1736852425476,0.00804,96758.0,96757.0,0.00687935]
[1736852425687,0.02835158,96758.0,96757.0,0.00687935]
[1736852425903,0.02835158,96758.0,96756.0,0.0008537]
[1736852425904,0.32981458,96757.0,96756.0,0.0008537]
[1736852426109,0.6333415,96757.0,96756.0,0.0008537]
[1736852427126,0.6333415,96757.0,96722.0,0.00965924]
[1736852427127,0.22708758,96723.0,96722.0,0.00965924]
[1736852427324,0.36222758,96723.0,96722.0,0.00965924]
[1736852428070,0.36222758,96723.0,96710.0,0.00965924]
[1736852428276,0.36222758,96723.0,96711.0,0.206801]
[1736852428436,0.02031158,96722.0,96711.0,0.21401326]
[1736852428639,0.20678,96721.0,96711.0,0.21451271]
[1736852430378,0.12317193,96721.0,96711.0,0.00771171]
[1736852430607,0.206782,96720.0,96711.0,0.00771171]
[1736852431392,0.002,96721.0,96711.0,0.00771171]
[1736852431393,0.02031158,96716.0,96711.0,0.00771171]
[1736852431524,0.206799,96712.0,96711.0,0.00771171]
[1736852431730,0.206799,96712.0,96711.0,0.00049945]
[1736852432441,0.206799,96712.0,96711.0,0.00149945]
[1736852433815,0.207799,96712.0,96711.0,0.00149945]
[1736852433943,0.207799,96712.0,96711.0,0.00049945]
[1736852434148,0.207799,96712.0,96711.0,0.00449945]
[1736852435292,0.213839,96712.0,96711.0,0.00449945]
[1736852436106,0.213839,96712.0,96711.0,0.00535335]
[1736852436731,0.213839,96712.0,96711.0,1.50535335]
[1736852437125,0.001,96712.0,96711.0,1.51265902]
[1736852437506,0.00704,96712.0,96711.0,1.51265902]
[1736852437731,0.00704,96712.0,96711.0,1.71946002]
[1736852439057,0.00704,96712.0,96711.0,1.51265902]
[1736852439769,0.00704,96712.0,96711.0,0.01265902]
[1736852440314,0.00704,96712.0,96711.0,1.51265902]
[1736852440520,0.00704,96712.0,96711.0,1.71946002]
[1736852441322,0.001,96712.0,96711.0,1.71946002]
[1736852441520,0.00704,96712.0,96711.0,1.71946002]
[1736852441984,0.00704,96712.0,96711.0,1.51265902]
[1736852444285,0.00704,96712.0,96711.0,0.01265902]
[1736852447204,0.00689525,96712.0,96711.0,0.01265902]
[1736852448601,0.00689525,96712.0,96711.0,0.01255902]
[1736852450682,0.00689525,96712.0,96711.0,0.02221384]
[1736852452253,0.23400583,96712.0,96711.0,0.02221384]
[1736852452632,0.30990583,96712.0,96711.0,0.01490817]
[1736852452834,0.50880583,96712.0,96711.0,0.00525335]
[1736852453047,0.53180583,96712.0,96711.0,0.00525335]
[1736852453278,0.63603275,96712.0,96711.0,0.00525335]
[1736852453652,0.6351775,96712.0,96711.0,0.00525335]
[1736852454054,0.6391775,96712.0,96711.0,0.00125335]
[1736852454478,0.6461775,96712.0,96711.0,0.00225335]
[1736852454680,0.6391775,96712.0,96711.0,0.00125335]
[1736852455037,0.6461775,96712.0,96711.0,0.00225335]
[1736852455239,0.6421775,96712.0,96711.0,0.00225335]
[1736852455581,0.6481775,96712.0,96711.0,0.00325335]
[1736852456227,0.65839761,96712.0,96711.0,0.00325335]
[1736852461129,0.66019143,96712.0,96711.0,0.00325335]
[1736852462000,0.023,96711.0,96690.0,0.00039458]
[1736852462196,0.023,96711.0,96690.0,0.00044456]
[1736852462197,0.206837,96695.0,96690.0,0.00044456]
[1736852462466,0.17281158,96691.0,96690.0,0.00044456]
[1736852462683,0.2770385,96691.0,96690.0,0.00044456]
[1736852463207,0.2770385,96691.0,96690.0,0.00144456]
[1736852464048,0.2770385,96691.0,96690.0,0.00244456]
[1736852464491,0.2770385,96691.0,96690.0,0.00044456]
[1736852464668,0.2770385,96691.0,96690.0,0.00144456]
[1736852464894,0.2790385,96691.0,96690.0,0.00144456]
[1736852466517,0.15785158,96691.0,96690.0,0.00144456]
[1736852467596,0.18085158,96691.0,96690.0,0.00144456]
[1736852467797,0.2850785,96691.0,96690.0,0.00144456]
[1736852471884,0.13305158,96691.0,96690.0,0.00144456]
[1736852472096,0.04531158,96691.0,96690.0,0.00144456]
[1736852472381,0.00804,96691.0,96690.0,0.00144456]
[1736852472771,0.00804,96691.0,96690.0,0.20829056]
[1736852472911,0.00804,96691.0,96690.0,1.70829056]
[1736852473101,0.002,96691.0,96690.0,1.71795497]
[1736852473496,0.002,96691.0,96690.0,1.80035497]
[1736852474391,0.02031158,96702.0,96701.0,0.206822]
[1736852474532,0.00604,96695.0,96691.0,0.206844]
[1736852474712,0.00604,96695.0,96692.0,0.206841]
[1736852475156,0.02031158,96702.0,96698.0,0.206829]
[1736852475365,0.00604,96701.0,96698.0,0.206829]
[1736852475545,0.00604,96701.0,96699.0,0.00966441]
[1736852477095,0.00604,96701.0,96698.0,0.206829]
[1736852477803,0.00604,96700.0,96698.0,0.206829]
[1736852478209,0.00604,96700.0,96699.0,0.001]
[1736852478437,0.00604,96700.0,96698.0,0.206829]
[1736852479645,0.00604,96700.0,96699.0,0.00967361]
[1736852480314,0.00804,96700.0,96699.0,0.00967361]
[1736852480841,0.00604,96700.0,96699.0,0.00967361]
[1736852481269,0.00804,96700.0,96695.0,0.206833]
[1736852481559,0.00804,96700.0,96699.0,0.001]
[1736852482993,0.00604,96700.0,96699.0,0.001]
[1736852483235,0.00604,96700.0,96699.0,0.01067961]
[1736852483454,0.00804,96700.0,96699.0,0.01067961]
[1736852483891,0.00604,96700.0,96699.0,0.01067961]
[1736852484275,0.00804,96700.0,96699.0,0.001]
[1736852486673,0.00804,96700.0,96699.0,0.011385]
[1736852488717,0.00804,96700.0,96699.0,0.001]
[1736852489122,0.214865,96700.0,96699.0,0.001]
[1736852489350,0.36207658,96700.0,96699.0,0.001]
[1736852489591,0.38507658,96700.0,96699.0,0.001]
[1736852494134,0.4893035,96700.0,96699.0,0.001]
[1736852495364,0.49109774,96700.0,96699.0,0.001]
[1736852496015,0.64109774,96700.0,96699.0,0.001]
[1736852500168,0.40997082,96700.0,96699.0,0.001]
[1736852500368,0.25997082,96700.0,96699.0,0.001]
[1736852503997,0.00379424,96700.0,96699.0,0.001]
[1736852504197,0.02410582,96700.0,96699.0,0.001]
[1736852504401,0.00983424,96700.0,96699.0,0.001]
[1736852504782,0.00379424,96700.0,96699.0,0.001]
[1736852505146,0.13872736,96717.0,96699.0,0.001]
[1736852505147,0.00179382,96712.0,96699.0,0.10522692]
[1736852505346,0.00179382,96712.0,96711.0,0.51738942]
[1736852505534,0.00179382,96712.0,96711.0,0.39192792]
[1736852505739,0.00179382,96712.0,96711.0,1.91709856]
[1736852506303,0.00379382,96712.0,96711.0,0.41709856]
[1736852506944,0.00379382,96712.0,96711.0,0.42209856]
[1736852507190,0.00379382,96712.0,96711.0,0.41709856]
[1736852507315,0.00179382,96712.0,96711.0,0.41709856]
[1736852507519,0.00179382,96712.0,96711.0,0.42209856]
[1736852507930,0.00179382,96712.0,96711.0,0.43249167]
[1736852508856,0.00179382,96712.0,96711.0,0.42749167]
[1736852509298,0.00179382,96712.0,96711.0,0.43549167]
[1736852509547,0.00179382,96712.0,96711.0,0.33126475]
[1736852509706,0.00179382,96712.0,96711.0,0.33226475]
[1736852510109,0.00179382,96712.0,96711.0,0.31677512]
[1736852511016,0.00179382,96712.0,96711.0,0.02907412]
[1736852513113,0.00179382,96712.0,96711.0,0.01939311]
[1736852518657,0.00179382,96712.0,96711.0,0.02904736]
[1736852519677,0.00179382,96712.0,96711.0,0.01939311]
[1736852523247,0.00179382,96712.0,96711.0,0.02904736]
[1736852524626,0.00179382,96712.0,96711.0,1.52904736]
[1736852525061,0.00179382,96712.0,96711.0,1.9330627]
[1736852525262,0.05111146,96744.0,96725.0,0.12317193]
[1736852525441,0.05111146,96744.0,96726.0,0.10526057]
[1736852525646,0.05111146,96744.0,96740.0,0.206739]
[1736852526244,0.05111146,96744.0,96740.0,0.413478]
[1736852526451,0.05711146,96744.0,96740.0,4.998e-05]
[1736852526627,0.05111146,96744.0,96742.0,0.206735]
[1736852527680,0.05611146,96744.0,96743.0,1.5]
[1736852528140,0.05111146,96744.0,96743.0,1.5]
[1736852528345,0.05111146,96744.0,96743.0,1.60422692]
[1736852528584,0.05311146,96744.0,96743.0,1.60422692]
[1736852528974,0.05111146,96744.0,96743.0,1.60422692]
[1736852529392,0.05311146,96744.0,96743.0,1.68897651]
[1736852530099,0.05311146,96744.0,96743.0,1.50964959]
[1736852530502,0.05490549,96744.0,96743.0,1.50964959]
[1736852530735,0.05290549,96744.0,96743.0,1.50964959]
[1736852530913,0.05390549,96744.0,96743.0,1.50964959]
[1736852531758,0.05390549,96744.0,96743.0,0.00964959]
[1736852532404,0.07421707,96744.0,96743.0,0.00964959]
[1736852532640,0.07421707,96744.0,96740.0,4.998e-05]
[1736852532859,0.25795375,96741.0,96740.0,4.998e-05]
[1736852533069,0.64339225,96741.0,96740.0,4.998e-05]
[1736852534969,0.74339225,96741.0,96740.0,4.998e-05]
[1736852535177,0.74339225,96741.0,96740.0,0.00104998]
[1736852535178,0.79059225,96741.0,96740.0,0.00104998]
[1736852535378,0.79759225,96741.0,96740.0,0.00204998]
[1736852535576,0.69759225,96741.0,96740.0,0.00204998]
[1736852540406,0.59336533,96741.0,96740.0,0.00204998]
[1736852541486,0.58636533,96741.0,96740.0,4.998e-05]
[1736852541676,0.20721675,96741.0,96740.0,0.00204998]
[1736852541881,0.21321675,96741.0,96740.0,0.00204998]
[1736852542074,0.20721675,96741.0,96740.0,0.00204998]
[1736852542425,0.21321675,96741.0,96740.0,0.00204998]
[1736852542580,0.21501016,96741.0,96740.0,0.00204998]
[1736852542777,0.20901016,96741.0,96740.0,0.00204998]
[1736852543099,0.06501016,96741.0,96740.0,0.00204998]
[1736852543506,0.05301016,96741.0,96740.0,0.00104998]
[1736852543832,0.05701016,96741.0,96740.0,4.998e-05]
[1736852544249,0.05301016,96741.0,96740.0,4.998e-05]
[1736852544457,0.05601016,96741.0,96740.0,0.01060757]
[1736852544784,0.05601016,96741.0,96740.0,4.998e-05]
[1736852544990,0.05301016,96741.0,96740.0,0.00971038]
[1736852545194,0.05501016,96741.0,96740.0,0.00971038]
[1736852545401,0.05501016,96741.0,96740.0,0.01071038]
[1736852548364,0.05501016,96741.0,96740.0,1.51071038]
[1736852548795,0.05501016,96741.0,96740.0,0.01071038]
[1736852549715,0.05301016,96741.0,96740.0,0.01071038]
[1736852550073,0.05501016,96741.0,96740.0,0.01071038]
[1736852550276,0.05501016,96741.0,96740.0,0.00971038]
[1736852550495,0.05301016,96741.0,96740.0,0.00971038]
[1736852550697,0.05301016,96741.0,96740.0,0.01071038]
[1736852550932,0.05401016,96741.0,96740.0,0.00971038]
[1736852551331,0.05401016,96741.0,96740.0,0.01171038]
[1736852554277,0.05401016,96741.0,96740.0,0.09461038]
[1736852555297,0.05401016,96741.0,96740.0,0.11006908]
[1736852556610,0.05401016,96741.0,96740.0,0.09461038]
[1736852557334,0.05401016,96741.0,96740.0,1.59461038]
[1736852557912,0.05401016,96741.0,96740.0,1.61006908]
[1736852559896,0.05401016,96741.0,96740.0,1.52716908]
[1736852561125,0.05401016,96741.0,96740.0,0.02716908]
[1736852561471,0.05401016,96741.0,96740.0,1.52716908]
[1736852562003,0.00279341,96741.0,96738.0,0.42368146]
[1736852562208,0.00279341,96741.0,96738.0,0.52570838]
[1736852562808,0.00179341,96741.0,96738.0,0.52570838]
[1736852563033,0.00179341,96741.0,96740.0,1.5]
[1736852563400,0.00279341,96741.0,96740.0,1.5]
[1736852564506,0.00279341,96741.0,96740.0,1.502]
[1736852564911,0.00179341,96741.0,96740.0,1.502]
[1736852565318,0.00279341,96741.0,96740.0,1.502]
[1736852569320,0.00279341,96741.0,96740.0,1.50130116]
[1736852572286,0.00279341,96741.0,96740.0,1.5168074]
[1736852574856,0.00279341,96741.0,96740.0,1.52650489]
[1736852583834,0.00279341,96741.0,96740.0,0.02720373]
[1736852584311,0.00279341,96741.0,96740.0,1.52720373]
[1736852587050,0.00279341,96741.0,96740.0,1.71254583]
[1736852587894,0.00279341,96741.0,96740.0,0.25914496]
[1736852588360,0.00279341,96741.0,96740.0,1.75914496]
[1736852588604,0.00279341,96741.0,96740.0,1.52720373]
[1736852589192,0.00279341,96741.0,96740.0,1.75914496]
[1736852589792,0.00279341,96741.0,96740.0,1.52720373]
[1736852590707,0.00279341,96741.0,96740.0,1.52805753]
[1736852592573,0.00279341,96741.0,96740.0,1.51255129]
[1736852595389,0.07869341,96741.0,96740.0,0.01255129]
[1736852595642,0.08469341,96741.0,96740.0,0.01255129]
[1736852598148,0.08469341,96741.0,96740.0,0.0028538]
[1736852604489,0.10500499,96741.0,96740.0,0.0028538]
[1736852604704,0.42983191,96741.0,96740.0,0.0028538]
[1736852605595,0.42983191,96741.0,96740.0,0.0008538]
[1736852605915,0.43183191,96741.0,96740.0,0.0008538]
[1736852606161,0.43083191,96741.0,96740.0,0.0008538]
[1736852606364,0.44107109,96741.0,96740.0,0.0008538]
[1736852606522,0.43907109,96741.0,96740.0,0.0008538]
[1736852606875,0.44307109,96741.0,96740.0,0.0008538]
[1736852607055,0.44507109,96741.0,96740.0,0.0008538]
[1736852607248,0.44107109,96741.0,96740.0,0.0008538]
[1736852607452,0.43907109,96741.0,96740.0,0.0008538]
[1736852607661,0.44407109,96741.0,96740.0,0.0008538]
[1736852609058,0.44607109,96741.0,96740.0,0.0008538]
[1736852610133,0.54607109,96741.0,96740.0,0.0008538]
[1736852610335,0.54407109,96741.0,96740.0,0.0008538]
[1736852610509,0.63152744,96741.0,96740.0,0.0008538]
[1736852610710,0.63352744,96741.0,96740.0,0.0018538]
[1736852610857,0.63352744,96741.0,96740.0,0.0028538]
[1736852610858,0.64152744,96741.0,96740.0,0.0028538]
[1736852611055,0.54907109,96741.0,96740.0,0.0028538]
[1736852612098,0.56528306,96741.0,96740.0,0.0028538]
[1736852612315,0.55728306,96741.0,96740.0,0.0018538]
[1736852612528,0.53907109,96741.0,96740.0,0.0008538]
[1736852612729,0.54807109,96741.0,96740.0,0.0018538]
[1736852612938,0.55607109,96741.0,96740.0,0.0028538]
[1736852613097,0.53907109,96741.0,96740.0,0.0008538]
[1736852613501,0.55607109,96741.0,96740.0,0.0018538]
[1736852615584,0.57228372,96741.0,96740.0,0.0018538]
[1736852616655,0.55607109,96741.0,96740.0,0.0018538]
[1736852618298,0.55590882,96741.0,96740.0,0.0018538]
[1736852620994,0.57212145,96741.0,96740.0,0.0018538]
[1736852624405,0.55590882,96741.0,96740.0,0.0018538]
[1736852625208,0.66013574,96741.0,96740.0,0.0018538]
[1736852625938,0.65590882,96741.0,96740.0,0.0018538]
[1736852629226,0.65590882,96741.0,96740.0,8e-07]
[1736852629947,0.55590882,96741.0,96740.0,8e-07]
[1736852630632,0.55590882,96741.0,96712.0,0.000854]
[1736852630633,0.02031158,96707.0,96702.0,0.0096572]
[1736852630807,0.006,96712.0,96705.0,0.206812]
[1736852631008,0.02031158,96707.0,96705.0,0.206812]
[1736852631441,0.02031158,96708.0,96706.0,0.0096572]
[1736852631618,0.02031158,96709.0,96706.0,1.5096572]
[1736852631847,0.003,96707.0,96706.0,1.5096572]
[1736852632352,0.02031158,96708.0,96706.0,1.5096572]
[1736852632710,0.02031158,96707.0,96706.0,1.5096572]
[1736852633378,0.02131158,96708.0,96706.0,1.5096572]
[1736852633554,0.02131158,96708.0,96707.0,0.0757]
[1736852633767,0.02131158,96708.0,96707.0,0.0853572]
[1736852634509,0.02031158,96708.0,96707.0,0.0853572]
[1736852635706,0.02131158,96708.0,96707.0,0.0883572]
[1736852636428,0.02031158,96708.0,96707.0,0.0883572]
[1736852636612,0.02031158,96708.0,96707.0,0.0853572]
[1736852636961,0.02031158,96708.0,96707.0,0.087211]
[1736852637569,0.02031158,96708.0,96707.0,0.011511]
[1736852637885,0.02131158,96708.0,96707.0,0.011511]
[1736852638399,0.02131158,96708.0,96707.0,0.010511]
[1736852638827,0.02031158,96708.0,96707.0,0.011511]
[1736852638991,0.02031158,96708.0,96707.0,0.010511]
[1736852639192,0.02231158,96708.0,96707.0,0.010511]
[1736852639633,0.02031158,96708.0,96707.0,0.010511]
[1736852640221,0.02031158,96709.0,96707.0,0.010511]
[1736852640420,0.02031158,96726.0,96708.0,0.00103402]
[1736852640622,0.0823,96742.0,96710.0,0.12336694]
[1736852640826,0.006,96740.0,96711.0,0.10526076]
[1736852641026,0.206756,96733.0,96722.0,0.206777]
[1736852641225,0.006,96736.0,96724.0,0.0816]
[1736852641422,0.006,96736.0,96733.0,0.206752]
[1736852641837,0.006,96736.0,96733.0,0.413505]
[1736852642057,0.006,96736.0,96734.0,0.0251752]
[1736852642480,0.012,96736.0,96734.0,0.0251752]
[1736852642668,0.015,96736.0,96735.0,0.20675]
[1736852642881,0.015,96736.0,96735.0,1.70675]
[1736852642882,0.009,96736.0,96735.0,1.70675]
[1736852643080,0.006,96736.0,96735.0,1.7319252]
[1736852643621,0.003,96736.0,96735.0,1.91775212]
[1736852643972,0.00163114,96741.0,96735.0,1.91775212]
[1736852644217,0.00163114,96741.0,96736.0,0.10422692]
[1736852644418,0.00163114,96741.0,96736.0,0.12940212]
[1736852644991,0.00163114,96741.0,96740.0,0.206739]
[1736852645769,0.00263114,96741.0,96740.0,0.206739]
[1736852646167,0.00263114,96741.0,96740.0,0.208739]
[1736852647027,0.00163114,96741.0,96740.0,0.2183962]
[1736852647472,0.00263114,96741.0,96740.0,0.2183962]
[1736852647893,0.00263114,96741.0,96740.0,0.32262312]
[1736852649009,0.00163114,96741.0,96740.0,0.32062312]
[1736852649210,0.00163114,96741.0,96740.0,0.32162312]
[1736852649350,0.00163114,96741.0,96740.0,0.2233962]
[1736852649549,0.00163114,96741.0,96740.0,0.0166572]
[1736852649997,0.00163114,96741.0,96740.0,0.007]
[1736852650173,0.00163114,96741.0,96740.0,0.001]
[1736852650374,0.00163114,96741.0,96738.0,0.206743]
[1736852650646,0.00163114,96741.0,96740.0,0.005]
[1736852650848,0.02194272,96741.0,96736.0,0.0096572]
[1736852651053,0.02194272,96741.0,96700.0,0.33018994]
[1736852651054,0.02031158,96735.0,96725.0,0.0096572]
[1736852651252,0.02031158,96728.0,96725.0,0.0096572]
[1736852652673,0.02031158,96728.0,96722.0,0.206778]
[1736852652900,0.02031158,96728.0,96725.0,0.002]
[1736852653689,0.02131158,96728.0,96725.0,0.002]
[1736852654350,0.02131158,96728.0,96722.0,0.206778]
[1736852655307,0.02031158,96728.0,96726.0,0.206769]
[1736852656524,0.02131158,96728.0,96726.0,0.206769]
[1736852656945,0.02131158,96728.0,96726.0,0.208769]
[1736852657173,0.006,96734.0,96726.0,0.002]
[1736852657318,0.006,96734.0,96730.0,0.206759]
[1736852657838,0.006,96734.0,96733.0,1.5]
[1736852658040,0.02031158,96737.0,96733.0,1.5]
[1736852658451,0.02031158,96738.0,96733.0,1.706753]
[1736852658649,0.006,96739.0,96733.0,1.5]
[1736852658869,0.02031158,96737.0,96733.0,1.5]
[1736852659252,0.02031158,96734.0,96733.0,1.5]
[1736852659995,0.02231158,96734.0,96733.0,1.5]
[1736852660659,0.02331158,96734.0,96733.0,1.5]
[1736852661333,0.02031158,96733.0,96727.0,0.206767]
[1736852661556,0.02031158,96731.0,96727.0,0.206767]
[1736852661943,0.02031158,96731.0,96728.0,1.5]
[1736852662703,0.02031158,96731.0,96717.0,0.206787]
[1736852662911,0.206766,96728.0,96714.0,0.206795]
[1736852663079,0.291903,96728.0,96718.0,0.00966132]
[1736852663288,0.498669,96728.0,96727.0,0.001]
[1736852663491,0.498669,96728.0,96718.0,1.50966132]
[1736852664014,0.206774,96724.0,96718.0,1.50966132]
[1736852664213,0.02031158,96725.0,96718.0,1.5]
[1736852666280,0.006,96724.0,96718.0,1.708785]
[1736852666474,0.006,96724.0,96718.0,1.706785]
[1736852666885,0.006,96724.0,96718.0,1.709785]
[1736852667091,0.006,96724.0,96718.0,1.706785]
[1736852667494,0.006,96724.0,96718.0,1.710785]
[1736852667899,0.006,96724.0,96718.0,1.706785]
[1736852668579,0.008,96724.0,96718.0,1.706785]
[1736852669038,0.008,96724.0,96718.0,0.206785]
[1736852669482,0.008,96724.0,96719.0,1.5]
[1736852669819,0.002,96724.0,96720.0,0.413562]
[1736852670492,0.02031158,96727.0,96723.0,0.206774]
[1736852670895,0.02031158,96727.0,96724.0,0.00967575]
[1736852671379,0.02031158,96727.0,96725.0,1.5]
[1736852671727,0.02031158,96725.0,96724.0,0.00967575]
[1736852671932,0.09981158,96725.0,96724.0,0.00967575]
[1736852672128,0.02031158,96721.0,96711.0,0.20694937]
[1736852672336,0.02031158,96721.0,96713.0,0.206797]
[1736852672796,0.02031158,96717.0,96711.0,0.00014937]
[1736852673005,0.413582,96716.0,96711.0,0.00014937]
[1736852673222,0.02031158,96712.0,96711.0,0.00014937]
[1736852674571,0.18494858,96712.0,96711.0,0.00614937]
[1736852675070,0.18494858,96712.0,96711.0,0.00714937]
[1736852675071,0.20794858,96712.0,96711.0,0.00714937]
[1736852675503,0.20794858,96712.0,96711.0,0.00614937]
[1736852675849,0.21094858,96712.0,96711.0,0.00614937]
[1736852676012,0.21094858,96712.0,96711.0,0.00014937]
[1736852676177,0.21394858,96712.0,96711.0,0.00014937]
[1736852677147,0.22131619,96712.0,96711.0,0.00014937]
[1736852677348,0.22431619,96712.0,96711.0,0.00014937]
[1736852680059,0.21394858,96712.0,96711.0,0.00014937]
[1736852680282,0.0855,96712.0,96711.0,0.00014937]
[1736852680487,0.012,96712.0,96711.0,0.00014937]
[1736852681117,0.03231158,96712.0,96711.0,0.00014937]
[1736852681318,0.012,96712.0,96711.0,0.00014937]
[1736852681455,0.006,96712.0,96711.0,0.00014937]
[1736852681883,0.006,96712.0,96711.0,1.50118328]
[1736852682094,0.006,96726.0,96711.0,1.60437629]
[1736852682266,0.006,96726.0,96725.0,0.206771]
[1736852683726,0.007,96726.0,96725.0,0.206771]
[1736852684850,0.001,96726.0,96725.0,0.206771]
[1736852684986,0.001,96726.0,96725.0,0.21740102]
[1736852685195,0.00279362,96726.0,96725.0,0.21740102]
[1736852685647,0.00379362,96726.0,96725.0,0.227067]
[1736852685896,0.00379362,96726.0,96725.0,0.231067]
[1736852686309,0.00379362,96726.0,96725.0,1.83529392]
[1736852686978,0.00179362,96726.0,96725.0,1.83529392]
[1736852687691,0.00179362,96726.0,96725.0,1.85076534]
[1736852691089,0.00179362,96726.0,96725.0,1.86562834]
[1736852692097,0.00179362,96726.0,96725.0,1.85076534]
[1736852692242,0.00179362,96726.0,96725.0,1.84676534]
[1736852692586,0.00179362,96726.0,96725.0,1.85476534]
[1736852694897,0.00179362,96726.0,96725.0,1.85676534]
[1736852697118,0.00179362,96726.0,96725.0,1.87162834]
[1736852705737,6.2e-07,96726.0,96725.0,2.07617936]
[1736852705939,6.2e-07,96726.0,96725.0,2.15667936]
[1736852706142,6.2e-07,96726.0,96725.0,2.18175358]
[1736852706837,6.2e-07,96726.0,96725.0,2.17375358]
[1736852707052,6.2e-07,96726.0,96725.0,2.17175358]
[1736852707245,6.2e-07,96726.0,96725.0,2.17675358]
[1736852707452,6.2e-07,96726.0,96725.0,2.18575358]